bitfinex-derivatives/quotes_ETHF0:USTF0_20250712
["timestamp","ask_amount","ask_price","bid_price","bid_amount"]
[1752307789472,49.00834999,2966.2,2966.1,2.5205]
[1752307790577,49.00834999,2966.2,2966.1,3.19448]
[1752307791670,49.00834999,2966.2,2966.1,2.5205]
[1752307792382,49.00834999,2966.2,2966.1,3.19448]
[1752307792677,49.00834999,2966.2,2966.1,2.5205]
[1752307793283,49.00834999,2966.2,2966.1,3.19448]
[1752307793882,48.1697,2966.2,2966.1,3.19448]
[1752307794581,47.3659,2966.2,2966.1,3.19448]
[1752307796681,48.1697,2966.2,2966.1,1.6223]
[1752307797672,0.6417,2966.0,2965.9,0.6416]
[1752307797881,48.1737,2966.0,2965.9,1.6223]
[1752307798182,48.1737,2966.0,2965.9,2.29633]
[1752307798474,49.68634999,2966.0,2965.9,0.9807]
[1752307798978,49.01234999,2966.0,2965.9,0.9807]
[1752307799876,49.01234999,2966.0,2965.9,1.6223]
[1752307800786,49.01234999,2966.0,2965.9,2.29633]
[1752307801081,49.01234999,2966.0,2965.9,3.19453]
[1752307801581,49.01234999,2966.0,2965.9,2.5205]
[1752307802180,49.01234999,2966.0,2965.9,3.19453]
[1752307805283,48.1737,2966.0,2965.9,3.19453]
[1752307812601,48.8477,2966.0,2965.9,2.5205]
[1752307812797,48.1737,2966.0,2965.9,2.5205]
[1752307813392,48.8477,2966.0,2965.9,2.5205]
[1752307813704,48.8477,2966.0,2965.2,4.72005538]
[1752307813705,3.0546,2965.6,2965.5,0.9649]
[1752307813898,1.5334,2965.3,2965.2,3.17028]
[1752307814092,48.97564999,2965.3,2965.2,1.5979]
[1752307814298,0.67419,2965.2,2965.0,0.8982]
[1752307814493,48.97564999,2965.1,2965.0,2.4961]
[1752307815806,48.97564999,2965.1,2965.0,3.17033]
[1752307816196,48.97564999,2965.1,2965.0,0.9649]
[1752307816903,47.3294,2965.1,2965.0,3.16703]
[1752307823311,48.97564999,2965.1,2965.0,3.16703]
[1752307823605,48.97564999,2965.1,2965.0,1.5979]
[1752307823812,49.64985999,2965.1,2965.0,1.5979]
[1752307824206,49.64985999,2965.1,2965.0,0.9649]
[1752307826213,1.4098,2964.9,2964.8,1.5279]
[1752307826408,48.97784999,2964.9,2964.8,1.5279]
[1752307826710,48.97784999,2964.9,2964.8,2.4928]
[1752307827511,48.97784999,2964.9,2964.8,1.5979]
[1752307827706,49.65209999,2964.9,2964.8,1.5979]
[1752307828916,48.97784999,2964.9,2964.8,1.5979]
[1752307829109,48.97784999,2964.9,2964.8,3.16708]
[1752307829311,47.3316,2964.9,2964.8,3.16708]
[1752307832516,47.3316,2964.9,2964.8,2.4928]
[1752307833315,47.3316,2964.9,2964.8,3.16708]
[1752307834314,48.81345,2964.9,2964.8,2.4928]
[1752307834511,49.65209999,2964.9,2964.8,2.4928]
[1752307835212,49.64915831,2964.9,2964.8,2.4928]
[1752307837816,48.97490831,2964.9,2964.8,2.4928]
[1752307838020,49.64915831,2964.9,2964.8,2.4928]
[1752307838315,49.64915831,2964.9,2964.8,1.5979]
[1752307840316,49.64915831,2964.9,2964.8,2.4928]
[1752307841319,49.64915831,2964.9,2964.8,1.5979]
[1752307841919,48.97490831,2964.9,2964.8,2.27218]
[1752307842122,48.97490831,2964.9,2964.8,3.16708]
[1752307842421,48.97490831,2964.9,2964.8,2.4928]
[1752307843221,50.49590941,2964.9,2964.8,2.4928]
[1752307843621,49.82165941,2964.9,2964.8,2.4928]
[1752307844018,50.49590941,2964.9,2964.8,2.4928]
[1752307844520,50.49590941,2964.9,2964.8,1.5979]
[1752307845420,0.6292,2964.7,2964.6,2.5012]
[1752307845621,52.22654999,2964.7,2964.6,2.5012]
[1752307845821,52.90084999,2964.7,2964.6,2.5012]
[1752307846216,52.22654999,2964.7,2964.6,2.5012]
[1752307846413,51.42144999,2964.7,2964.6,2.5012]
[1752307846919,51.42144999,2964.7,2964.6,3.17552]
[1752307847123,49.9536,2964.7,2964.6,3.17552]
[1752307847727,49.0198,2964.7,2964.6,3.17552]
[1752307848225,49.9536,2964.7,2964.6,3.17552]
[1752307850023,46.7458,2964.7,2964.6,3.17552]
[1752307851835,45.812,2964.7,2964.6,3.17552]
[1752307852728,46.7458,2964.7,2964.6,3.17552]
[1752307853926,45.812,2964.7,2964.6,3.17552]
[1752307856334,46.7458,2964.7,2964.6,3.17552]
[1752307857432,45.812,2964.7,2964.6,3.17552]
[1752307859933,46.7458,2964.7,2964.6,3.17552]
[1752307862134,45.812,2964.7,2964.6,3.17552]
[1752307863537,46.7458,2964.7,2964.6,3.17552]
[1752307865135,45.812,2964.7,2964.6,3.17552]
[1752307867232,45.812,2964.7,2964.6,4.01416999]
[1752307867433,3.2078,2965.0,2964.9,1.30745]
[1752307867631,0.00505671,2965.1,2965.0,2.28363]
[1752307867838,0.00505671,2965.1,2965.0,3.25673]
[1752307868240,0.00505671,2965.1,2965.0,4.09537999]
[1752307870742,0.00505671,2965.1,2965.0,7.30317999]
[1752307882050,0.97615671,2965.1,2965.0,6.46453]
[1752307883550,1.59265671,2965.1,2965.0,6.46453]
[1752307883853,1.59265671,2965.1,2965.0,3.25673]
[1752307889156,2.39845671,2965.1,2965.0,3.25673]
[1752307890362,1.59265671,2965.1,2965.0,3.25673]
[1752307892959,0.00505671,2965.1,2965.0,4.09537999]
[1752307894362,0.97615671,2965.1,2965.0,4.09537999]
[1752307895664,0.00505671,2965.1,2965.0,4.09537999]
[1752307896266,6.71e-06,2965.1,2965.0,4.09537999]
[1752307896467,6.71e-06,2965.1,2965.0,6.52088171]
[1752307897357,6.71e-06,2965.1,2965.0,4.09537999]
[1752307904572,0.97110671,2965.1,2965.0,3.25673]
[1752307904773,0.97110671,2965.1,2965.0,4.09537999]
[1752307905874,1.57800671,2965.1,2965.0,3.25673]
[1752307909369,0.97110671,2965.1,2965.0,4.09537999]
[1752307914580,6.71e-06,2965.1,2965.0,2.14607999]
[1752307917974,0.90170671,2965.1,2965.0,4.04437999]
[1752307919780,1.50860671,2965.1,2965.0,4.04437999]
[1752307919984,1.50860671,2965.1,2965.0,3.20573]
[1752307922689,1.50860671,2965.1,2965.0,6.41353]
[1752307925584,1.50860671,2965.1,2965.0,7.25217999]
[1752307926290,1.50860671,2965.1,2965.0,6.41353]
[1752307928688,1.50860671,2965.1,2965.0,3.20573]
[1752307930186,1.50860671,2965.1,2965.0,5.63312021]
[1752307930389,1.50860671,2965.1,2965.0,3.20573]
[1752307930595,1.50860671,2965.1,2965.0,5.63312348]
[1752307930792,1.50860671,2965.1,2965.0,3.20573]
[1752307931192,1.50860671,2965.1,2965.0,5.63314308]
[1752307931596,1.50860671,2965.1,2965.0,3.20573]
[1752307932294,1.50860671,2965.1,2965.0,5.633022]
[1752307935396,0.90170671,2965.1,2965.0,4.04437999]
[1752307936301,6.71e-06,2965.1,2965.0,2.14607999]
[1752307940005,6.71e-06,2965.1,2965.0,5.35387999]
[1752307943812,0.65450671,2965.1,2965.0,5.35387999]
[1752307944110,1.61450671,2965.1,2965.0,5.35387999]
[1752307944312,1.61450671,2965.1,2965.0,7.20897999]
[1752307944909,1.61450671,2965.1,2965.0,7.00078895]
[1752307946813,1.61450671,2965.1,2965.0,3.79298895]
[1752307948813,2.41910671,2965.1,2965.0,3.79298895]
[1752307949417,1.61450671,2965.1,2965.0,3.79298895]
[1752307954420,1.61450671,2965.1,2965.0,26.68198895]
[1752307955718,1.61450671,2965.1,2965.0,29.88978895]
[1752307962024,1.61450671,2965.1,2965.0,26.68198895]
[1752307963929,1.61450671,2965.1,2965.0,26.67998895]
[1752307970227,1.61450671,2965.1,2965.0,3.79298895]
[1752307970427,1.61450671,2965.1,2965.0,26.67898895]
[1752307976231,1.61450671,2965.1,2965.0,3.79298895]
[1752307976430,1.61450671,2965.1,2965.0,26.67798895]
[1752307979636,0.96000671,2965.1,2965.0,26.67798895]
[1752307979838,6.71e-06,2965.1,2965.0,24.82288895]
[1752307980938,6.71e-06,2965.1,2965.0,27.85748433]
[1752307984140,6.71e-06,2965.1,2965.0,4.97248433]
[1752307984342,6.71e-06,2965.1,2965.0,24.82088895]
[1752307984940,6.71e-06,2965.1,2965.0,28.06543993]
[1752307985241,6.71e-06,2965.1,2965.0,25.03084455]
[1752307986435,0.62220671,2965.1,2965.0,1.30743]
[1752307986639,1.55690671,2965.1,2965.0,25.09383]
[1752307987139,1.55690671,2965.1,2965.0,26.04653]
[1752307987537,1.55690671,2965.1,2965.0,26.88694455]
[1752307989032,6.71e-06,2965.1,2965.0,25.03084455]
[1752307994943,6.71e-06,2965.1,2965.0,28.23864455]
[1752308003056,6.71e-06,2965.1,2965.0,25.03084455]
[1752308003257,6.71e-06,2965.1,2965.0,28.23864455]
[1752308003451,0.64530671,2965.1,2965.0,4.51523]
[1752308003656,2.42240671,2965.1,2965.0,1.30743]
[1752308003859,2.42240671,2965.1,2965.0,2.28973]
[1752308004150,3.93703126,2965.1,2965.0,2.42514687]
[1752308004355,1.31953,2965.0,2964.9,3.09938687]
[1752308004553,3.93704455,2965.0,2964.9,3.09938687]
[1752308004757,8.93704455,2965.0,2964.9,3.09938687]
[1752308005155,8.93704455,2965.0,2964.9,0.67424]
[1752308005357,3.26281455,2965.0,2964.9,0.67424]
[1752308008154,3.26281455,2965.0,2964.8,0.67426]
[1752308008357,2.4224,2964.6,2964.5,1.65665]
[1752308010958,2.4224,2964.6,2964.5,2.31085]
[1752308012858,2.4224,2964.6,2964.5,3.20665]
[1752308021861,1.6141,2964.6,2964.5,3.20665]
[1752308022069,2.4224,2964.9,2964.8,1.32848]
[1752308022362,2.4224,2964.9,2964.8,3.20658]
[1752308022566,1.6141,2964.9,2964.8,3.20658]
[1752308022759,3.2078,2965.0,2964.9,0.67426]
[1752308022962,4.1766,2965.0,2964.9,4.04697455]
[1752308024776,4.7806,2965.0,2964.9,4.04697455]
[1752308025568,6.71e-06,2965.1,2965.0,0.67423]
[1752308045590,6.71e-06,2965.1,2965.0,23.54723]
[1752308047291,0.24859671,2965.3,2965.2,0.67419]
[1752308047491,4.65221455,2966.2,2966.1,0.67398]
[1752308047687,5.49477352,2966.2,2966.1,0.67398]
[1752308047992,11.30003352,2966.2,2966.1,0.54268]
[1752308048290,10.62607352,2966.2,2966.1,0.54268]
[1752308049491,12.23603352,2966.2,2966.1,0.54268]
[1752308050593,10.71951455,2966.2,2966.1,0.54268]
[1752308051290,11.39347455,2966.2,2966.1,0.54268]
[1752308054196,6.39347455,2966.2,2966.1,0.54268]
[1752308054394,11.39347455,2966.2,2966.1,0.54268]
[1752308054893,0.67401,2966.1,2966.0,0.674]
[1752308055088,0.936,2966.1,2966.0,0.674]
[1752308055289,4.72218455,2966.2,2966.1,0.67398]
[1752308055496,5.56690139,2966.2,2966.1,0.67398]
[1752308055695,10.56690139,2966.2,2966.1,0.67398]
[1752308055895,11.52060139,2966.2,2966.1,0.67398]
[1752308057093,10.84663139,2966.2,2966.1,1.63328]
[1752308057692,11.52059139,2966.2,2966.1,1.63328]
[1752308059105,10.84663139,2966.2,2966.1,1.63328]
[1752308059306,11.52059139,2966.2,2966.1,1.63328]
[1752308059501,6.52059139,2966.2,2966.1,1.63328]
[1752308060706,5.84663139,2966.2,2966.1,1.63328]
[1752308060895,6.52059139,2966.2,2966.1,1.63328]
[1752308062408,5.84663139,2966.2,2966.1,1.63328]
[1752308062706,5.00621684,2966.2,2966.1,2.57098]
[1752308063001,5.68017684,2966.2,2966.1,2.57098]
[1752308063606,5.00621684,2966.2,2966.1,2.57098]
[1752308063807,5.68017684,2966.2,2966.1,2.57098]
[1752308064004,6.52059139,2966.2,2966.1,1.63328]
[1752308065314,5.84663139,2966.2,2966.1,1.63328]
[1752308065814,6.52059139,2966.2,2966.1,1.63328]
[1752308067913,5.00621684,2966.2,2966.1,1.63328]
[1752308068207,5.00621684,2966.2,2966.1,3.19768]
[1752308070614,5.68017684,2966.2,2966.1,3.19768]
[1752308071812,5.00621684,2966.2,2966.1,3.19768]
[1752308072013,1.79841684,2966.2,2966.1,3.19768]
[1752308072516,3.31279139,2966.2,2966.1,2.25998]
[1752308072816,2.63883139,2966.2,2966.1,1.63328]
[1752308073110,2.63883139,2966.2,2966.1,2.57098]
[1752308073317,2.63883139,2966.2,2966.1,3.19768]
[1752308074613,1.79841684,2966.2,2966.1,3.19768]
[1752308077113,0.84471684,2966.2,2966.1,3.19768]
[1752308077319,1.79841684,2966.2,2966.1,3.19768]
[1752308089627,0.84471684,2966.2,2966.1,4.03809455]
[1752308089826,0.9359,2966.5,2966.4,0.67392]
[1752308090033,1.78363449,2966.5,2966.4,3.18492]
[1752308095132,0.9359,2966.5,2966.4,3.18492]
[1752308097533,1.78266853,2966.5,2966.4,3.18492]
[1752308098131,0.9359,2966.5,2966.4,3.18492]
[1752308098628,4.99043946,2966.5,2966.4,3.18492]
[1752308099633,0.9359,2965.9,2965.8,1.5564]
[1752308099932,27.84611455,2965.9,2965.8,3.18505]
[1752308100636,24.63831455,2965.9,2965.8,3.18505]
[1752308102031,23.7979,2965.9,2965.8,3.18505]
[1752308103032,24.63831455,2965.9,2965.8,3.18505]
[1752308104434,23.7979,2965.9,2965.8,3.18505]
[1752308106535,3.2078,2966.0,2965.9,3.18503]
[1752308106835,3.2078,2966.0,2965.9,4.02544455]
[1752308107035,1.6098,2966.5,2966.4,1.2916]
[1752308107337,24.64434844,2966.5,2966.4,3.1849]
[1752308107835,23.70944844,2966.5,2966.4,3.1849]
[1752308108539,22.863,2966.5,2966.4,3.1849]
[1752308109938,3.2078,2966.6,2966.5,1.29159]
[1752308110235,3.2078,2966.6,2966.5,3.18489]
[1752308110839,0.00505671,2966.8,2966.6,0.6177]
[1752308111137,0.00505671,2966.8,2966.7,3.18485]
[1752308111328,0.00505671,2966.8,2966.7,2.23025]
[1752308111534,0.00505671,2966.8,2966.7,3.18485]
[1752308112734,0.00505671,2966.8,2966.7,4.02526455]
[1752308113738,0.00505671,2966.8,2966.7,9.02526455]
[1752308114140,3.2078,2967.2,2967.1,3.23726]
[1752308114437,4.05357709,2967.2,2967.1,4.07767455]
[1752308114636,3.2078,2967.2,2967.1,4.07767455]
[1752308115538,1.622,2967.9,2967.8,2.2539]
[1752308115729,2.46742905,2967.9,2967.8,3.2136]
[1752308117737,0.84542905,2967.9,2967.8,3.2136]
[1752308118443,24.482,2968.1,2968.0,1.32275]
[1752308118643,25.32631283,2968.1,2968.0,3.21355]
[1752308118840,24.482,2968.1,2968.0,3.21355]
[1752308120648,22.86,2968.1,2968.0,3.21355]
[1752308121038,23.8276,2968.1,2968.0,3.21355]
[1752308121745,24.482,2968.1,2968.0,3.21355]
[1752308122337,23.5144,2968.1,2968.0,3.21355]
[1752308122743,24.482,2968.1,2968.0,3.21355]
[1752308124748,25.4182,2968.1,2968.0,3.21355]
[1752308125750,24.482,2968.1,2968.0,3.21355]
[1752308126955,2.5582,2968.1,2968.0,3.21355]
[1752308128254,1.622,2968.1,2968.0,3.21355]
[1752308139771,1.622,2968.1,2967.6,1.68408]
[1752308139772,0.67357,2967.9,2967.8,0.9597]
[1752308140066,1.5906,2967.5,2967.4,3.21369]
[1752308140466,2.5582,2967.5,2967.4,3.21369]
[1752308144263,1.622,2967.5,2967.4,3.21369]
[1752308144670,1.622,2967.5,2967.4,4.05410455]
[1752308145069,23.4966,2967.6,2967.5,3.14747]
[1752308145469,24.4659,2967.6,2967.5,3.14747]
[1752308146571,25.4543,2967.6,2967.5,3.14747]
[1752308146866,25.4543,2967.6,2967.0,2.52483455]
[1752308146867,3.26497,2967.5,2967.2,1.64982]
[1752308147066,0.84041455,2967.7,2967.0,3.2078]
[1752308147067,0.6336,2967.3,2967.1,0.9001]
[1752308147272,0.6336,2967.0,2966.9,0.9001]
[1752308147470,47.05338,2967.0,2966.8,0.9001]
[1752308147669,4.10552455,2966.9,2966.6,0.67386]
[1752308147872,3.2078,2967.2,2966.7,3.19265]
[1752308147873,46.7173,2966.8,2966.7,3.19265]
[1752308148067,45.748,2966.8,2966.7,4.03306455]
[1752308148266,45.749,2967.0,2966.9,1.3164]
[1752308148469,1.6029,2967.5,2967.4,1.31629]
[1752308148773,1.6029,2967.5,2967.1,1.8762]
[1752308148774,45.765,2967.7,2967.6,3.19245]
[1752308148976,45.765,2967.7,2967.6,6.40025]
[1752308149776,45.765,2967.7,2967.6,3.19245]
[1752308150174,1.6029,2967.7,2967.6,1.31625]
[1752308150779,1.6029,2967.7,2967.6,3.19245]
[1752308151780,1.6029,2967.7,2967.6,6.40025]
[1752308152580,45.779,2967.8,2967.7,1.31623]
[1752308152774,45.779,2967.8,2967.7,2.29233]
[1752308153082,46.7483,2967.8,2967.7,3.19243]
[1752308154280,47.7367,2967.8,2967.7,3.19243]
[1752308155284,46.7483,2967.8,2967.7,3.19243]
[1752308158184,45.779,2967.8,2967.7,3.19243]
[1752308159688,46.7483,2967.8,2967.7,3.19243]
[1752308160486,45.779,2967.8,2967.7,3.19243]
[1752308160985,0.6336,2968.0,2967.9,2.21628]
[1752308161180,23.5216,2968.0,2967.9,3.19238]
[1752308161581,24.4909,2968.0,2967.9,3.19238]
[1752308162078,1.47401455,2968.4,2968.3,0.6426]
[1752308162285,25.04945071,2968.4,2968.3,1.5427]
[1752308162782,27.00715071,2968.4,2968.3,1.5427]
[1752308162982,27.00715071,2968.4,2968.3,0.9001]
[1752308163485,27.00715071,2968.4,2968.3,1.57359]
[1752308163680,1.30711,2968.2,2968.1,3.19738671]
[1752308163881,27.84660526,2968.2,2968.1,2.22128671]
[1752308164081,27.84660526,2968.2,2968.1,1.57868671]
[1752308164586,27.84660526,2968.2,2968.1,0.67858671]
[1752308164786,27.00022455,2968.2,2968.1,0.67858671]
[1752308165489,27.00022455,2968.2,2968.1,1.57868671]
[1752308165784,26.32671455,2968.2,2968.1,1.57868671]
[1752308165986,27.00022455,2968.2,2968.1,1.57868671]
[1752308166386,26.32671455,2968.2,2968.1,1.57868671]
[1752308166784,27.00022455,2968.2,2968.1,1.57868671]
[1752308167285,26.32671455,2968.2,2968.1,1.57868671]
[1752308167483,27.00022455,2968.2,2968.1,0.00505671]
[1752308168183,27.00022455,2968.2,2968.1,0.90515671]
[1752308168377,27.84703758,2968.2,2968.1,0.90515671]
[1752308168581,27.84703758,2968.2,2968.1,1.57868671]
[1752308168781,27.00022455,2968.2,2968.1,2.22128671]
[1752308168986,27.84702502,2968.2,2968.1,2.52385671]
[1752308169287,26.32671455,2968.2,2968.1,3.19738671]
[1752308169489,27.1735261,2968.2,2968.1,3.19738671]
[1752308169786,26.32671455,2968.2,2968.1,3.19738671]
[1752308170188,27.00022455,2968.2,2968.1,2.52385671]
[1752308170386,4.10522455,2968.2,2968.1,3.19738671]
[1752308170590,25.4873,2968.2,2968.1,3.19738671]
[1752308171991,26.16081,2968.2,2968.1,3.19738671]
[1752308172591,25.4873,2968.2,2968.1,3.19738671]
[1752308174992,2.5913,2968.2,2968.1,3.19738671]
[1752308175290,24.4979,2968.2,2968.1,3.19738671]
[1752308175791,1.6029,2968.2,2968.1,3.19738671]
[1752308175992,24.4979,2968.2,2968.1,3.19738671]
[1752308176892,23.5286,2968.2,2968.1,3.19738671]
[1752308177789,4.1735,2968.4,2968.3,2.27959]
[1752308178086,4.05506504,2968.4,2968.3,4.08800455]
[1752308178285,22.894,2968.5,2968.4,0.67347]
[1752308178487,23.74186331,2968.5,2968.4,3.24757]
[1752308178693,22.894,2968.5,2968.4,3.24757]
[1752308179088,24.5059,2968.5,2968.4,3.24757]
[1752308181494,22.894,2968.5,2968.4,3.24757]
[1752308182391,24.5039,2968.6,2968.5,0.968]
[1752308182593,24.5039,2968.6,2968.5,2.27124]
[1752308182792,24.5039,2968.6,2968.5,3.24754]
[1752308182989,25.20052,2968.6,2968.5,1.6061]
[1752308183195,27.00663455,2968.6,2968.5,1.6061]
[1752308183398,27.00663455,2968.6,2968.5,2.27954]
[1752308183599,27.00663455,2968.6,2968.5,3.24754]
[1752308184199,27.00663455,2968.6,2968.5,2.5741]
[1752308184498,26.16622,2968.6,2968.5,2.5741]
[1752308184995,26.16622,2968.6,2968.5,3.24754]
[1752308185298,25.4928,2968.6,2968.5,3.24754]
[1752308185498,26.16622,2968.6,2968.5,3.24754]
[1752308186194,26.16622,2968.6,2968.5,2.5741]
[1752308186995,26.16622,2968.6,2968.5,3.24754]
[1752308187897,25.4928,2968.6,2968.5,3.24754]
[1752308188196,26.16622,2968.6,2968.5,3.24754]
[1752308188398,26.16622,2968.6,2968.5,2.5741]
[1752308188594,26.16622,2968.6,2968.5,0.9763]
[1752308188799,0.67344,2968.5,2968.4,0.67345]
[1752308189100,4.11465455,2968.5,2968.4,3.24755]
[1752308189399,3.44121455,2968.5,2968.4,3.24755]
[1752308189900,4.11465455,2968.5,2968.4,2.5741]
[1752308190601,1.6351,2968.3,2968.2,0.9763]
[1752308190804,1.6351,2968.3,2968.1,3.88637671]
[1752308190805,3.12582455,2968.2,2968.1,1.65488671]
[1752308190997,3.44121455,2968.2,2968.1,3.25268671]
[1752308191503,4.11472455,2968.2,2968.1,3.25268671]
[1752308191700,3.44121455,2968.2,2968.1,3.25268671]
[1752308191901,2.6008,2968.2,2968.1,3.25268671]
[1752308192902,3.27431,2968.2,2968.1,3.25268671]
[1752308193203,2.6008,2968.2,2968.1,3.25268671]
[1752308193808,3.27431,2968.2,2968.1,2.57915671]
[1752308194106,4.11472455,2968.2,2968.1,2.57915671]
[1752308194300,4.96278495,2968.2,2968.1,2.57915671]
[1752308195098,4.96278495,2968.2,2968.1,0.00505671]
[1752308198407,4.96278495,2968.2,2968.1,0.98135671]
[1752308198906,4.96268072,2968.2,2968.1,2.57915671]
[1752308199907,3.44875617,2968.2,2968.1,3.25268671]
[1752308200205,2.45985617,2968.2,2968.1,3.25268671]
[1752308200605,1.6119,2968.2,2968.1,3.25268671]
[1752308201908,2.28541,2968.2,2968.1,3.25268671]
[1752308202207,3.27431,2968.2,2968.1,3.25268671]
[1752308202702,1.6119,2968.2,2968.1,3.25268671]
[1752308204109,2.28541,2968.2,2968.1,3.25268671]
[1752308204608,1.6119,2968.2,2968.1,3.25268671]
[1752308204999,2.5847,2968.2,2968.1,3.25268671]
[1752308206308,2.5847,2968.2,2968.1,2.57915671]
[1752308206309,3.25821,2968.2,2968.1,2.57915671]
[1752308207808,4.10289854,2968.2,2968.1,0.98135671]
[1752308208006,3.25821,2968.2,2968.1,0.98135671]
[1752308208212,4.10286218,2968.2,2968.1,0.98135671]
[1752308208708,7.31066218,2968.2,2968.1,1.57665671]
[1752308208907,3.1534,2967.8,2967.7,0.962]
[1752308209112,49.76781455,2967.8,2967.7,0.962]
[1752308212108,49.76781455,2967.8,2967.7,2.23093]
[1752308212411,49.76781455,2967.8,2967.7,2.5328]
[1752308213815,48.9274,2967.8,2967.7,2.5328]
[1752308214016,48.9274,2967.8,2967.7,3.20643]
[1752308214017,48.2538,2967.8,2967.7,3.20643]
[1752308214208,47.281,2967.8,2967.7,3.20643]
[1752308214714,45.774,2967.8,2967.7,3.20643]
[1752308215911,3.8118,2968.3,2968.2,0.5953]
[1752308216111,49.5828,2968.3,2968.2,2.5328]
[1752308216512,50.4858,2968.3,2968.2,2.5328]
[1752308216816,50.4858,2968.3,2968.2,3.20631]
[1752308217015,47.278,2968.3,2968.2,3.20631]
[1752308221022,48.12296471,2968.3,2968.2,3.20631]
[1752308221319,47.95149,2968.3,2968.2,2.5328]
[1752308221527,50.60963315,2968.3,2968.2,0.962]
[1752308221925,0.67353,2968.1,2968.0,2.5328]
[1752308222132,49.78074455,2968.1,2968.0,0.962]
[1752308222626,50.62560013,2968.1,2968.0,1.5573]
[1752308222928,50.62560013,2968.1,2968.0,2.5328]
[1752308224327,50.62557133,2968.1,2968.0,2.5328]
[1752308226329,49.95204133,2968.1,2968.0,2.5328]
[1752308226732,49.95204133,2968.1,2968.0,3.20636]
[1752308227131,49.11162678,2968.1,2968.0,3.20636]
[1752308227327,48.13882678,2968.1,2968.0,3.20636]
[1752308227527,48.13882678,2968.1,2968.0,2.5328]
[1752308228033,48.81235678,2968.1,2968.0,2.5328]
[1752308228333,49.78515678,2968.1,2968.0,2.5328]
[1752308228831,50.62557133,2968.1,2968.0,2.5328]
[1752308229436,49.95204133,2968.1,2968.0,3.20636]
[1752308229634,48.13882678,2968.1,2968.0,3.20636]
[1752308229836,49.11162678,2968.1,2968.0,3.20636]
[1752308230435,49.78515678,2968.1,2968.0,3.20636]
[1752308231036,49.78515678,2968.1,2968.0,2.5328]
[1752308231236,50.62557133,2968.1,2968.0,2.5328]
[1752308232039,50.62557133,2968.1,2968.0,3.20636]
[1752308232739,2.35182678,2968.1,2968.0,3.20636]
[1752308233039,25.23582678,2968.1,2968.0,3.20636]
[1752308234740,0.84482678,2968.1,2968.0,3.20636]
[1752308237039,22.882,2968.2,2968.0,3.20636]
[1752308237233,24.4456,2968.2,2968.1,3.12923]
[1752308237437,25.29090734,2968.2,2968.1,3.12923]
[1752308239139,23.72730734,2968.2,2968.1,3.12923]
[1752308240442,23.72730734,2968.2,2968.1,3.96964455]
[1752308240744,22.882,2968.2,2968.1,3.96964455]
[1752308241544,22.8812733,2968.3,2968.2,3.12921]
[1752308241744,22.8812733,2968.3,2968.2,6.33701]
[1752308242944,24.4448733,2968.3,2968.2,3.12921]
[1752308244145,22.8812733,2968.3,2968.2,3.12921]
[1752308244349,0.0022733,2968.3,2968.2,3.12921]
[1752308244549,0.0022733,2968.3,2968.2,6.33701]
[1752308250450,0.0022733,2968.3,2968.2,11.33701]
[1752308250752,3.3e-06,2968.4,2968.3,2.23399]
[1752308251055,3.3e-06,2968.4,2968.3,3.96960455]
[1752308251255,3.3e-06,2968.4,2968.3,8.96960455]
[1752308252355,3.3e-06,2968.4,2968.3,9.23782041]
[1752308252757,0.6497,2969.1,2969.0,0.6158]
[1752308252962,0.6497,2969.1,2969.0,3.12903]
[1752308253257,1.5636,2969.1,2969.0,3.12903]
[1752308253852,2.523,2969.1,2969.0,3.12903]
[1752308255660,1.32302,2969.1,2968.9,0.67333]
[1752308255860,3.36341455,2969.0,2968.9,0.67333]
[1752308256560,2.523,2969.0,2968.9,1.56853]
[1752308256767,2.523,2969.0,2968.9,3.12903]
[1752308260062,1.5636,2969.0,2968.9,3.12903]
[1752308260665,3.19633,2969.0,2968.9,3.12903]
[1752308260861,1.8733,2969.0,2968.8,0.67337]
[1752308261067,2.523,2968.9,2968.8,1.56857]
[1752308261467,2.523,2968.9,2968.8,3.12907]
[1752308261864,1.5636,2968.9,2968.8,3.12907]
[1752308262065,2.523,2968.9,2968.8,3.12907]
[1752308262968,1.5636,2968.9,2968.8,3.12907]
[1752308263371,2.5004,2968.9,2968.8,3.12907]
[1752308264868,1.5636,2968.9,2968.8,3.12907]
[1752308267674,2.5004,2968.9,2968.8,3.12907]
[1752308271475,1.5636,2968.9,2968.8,3.12907]
[1752308272475,2.5004,2968.9,2968.8,3.12907]
[1752308275278,3.3478913,2968.9,2968.8,3.12907]
[1752308277790,4.0212413,2968.9,2968.8,3.12907]
[1752308277989,3.3478913,2968.9,2968.8,3.12907]
[1752308278989,1.4971913,2968.9,2968.6,0.9533]
[1752308279287,2.4701,2968.6,2968.5,3.19524]
[1752308284290,3.14352,2968.6,2968.5,0.9533]
[1752308284496,2.4701,2968.4,2968.3,3.19528]
[1752308284690,3.31770264,2968.4,2968.3,3.19528]
[1752308285191,2.38090264,2968.4,2968.3,3.19528]
[1752308285391,1.5333,2968.4,2968.3,4.03569455]
[1752308287790,1.5333,2968.4,2968.3,3.19528]
[1752308287996,2.4701,2968.4,2968.3,3.19528]
[1752308288293,3.14357,2968.4,2968.3,2.5218]
[1752308288493,2.4701,2968.4,2968.3,3.19529]
[1752308291396,1.5333,2968.4,2968.3,3.19529]
[1752308294000,0.9368,2968.6,2968.5,1.5591]
[1752308294001,1.53,2968.6,2968.5,1.5591]
[1752308294200,2.37696593,2968.6,2968.5,3.19754]
[1752308294398,1.46126593,2968.6,2968.5,4.03795455]
[1752308294704,0.8982,2968.8,2968.7,3.1975]
[1752308294705,1.53,2968.8,2968.7,3.1975]
[1752308294902,2.37692511,2968.8,2968.7,3.1975]
[1752308295704,1.46122511,2968.8,2968.7,4.03791455]
[1752308295905,0.84692511,2968.8,2968.7,4.03791455]
[1752308296106,0.84692511,2968.8,2968.7,7.24571455]
[1752308296505,23.824,2969.0,2968.9,1.33235]
[1752308296708,24.67089254,2969.0,2968.9,3.20275]
[1752308296907,25.28519254,2969.0,2968.9,3.20275]
[1752308297109,2.42819254,2969.0,2968.9,3.20275]
[1752308299611,1.5813,2969.0,2968.9,3.20275]